Cogmind - Beta 17 @@@ ROGUE MODE // 2026.08.09 @ 17:42:27 Player: OBLIQUE Result: Destroyed by KK-D09(j) with Overtuned Pulse Rifle Performance ------------- Evolutions (0) 0 Regions Visited (4) 800 Robots Destroyed (55) 275 Value Destroyed (1439) 1439 Prototype IDs (22) 440 Alien Tech Used (0) 0 Bonus (-73) -73 TOTAL SCORE: 2881 Bonus ------- Follower Combat Kills 67 Friendly Fire -140 Cogmind --------- Core Integrity 0/250 Matter 210/300 Energy 180/180 System Corruption 0% Temperature Cool (45) Movement Treading (360) Ox2 Location -7/Recycling Parts ------- > --- POWER (1) -------- Meta Core > --- PROPULSION (2) --- Spiked Treads Spiked Treads > --- UTILITY (2+1) ---- Improved Heat Sink Huge Storage Unit (+) Makeshift Light Armor Plating > --- WEAPON (2) ------- Improved Light Cannon Improved Light Cannon > --- INVENTORY (25) --- Ion Engine Improved Deuterium Engine Light Treads Subdweller Monowheel Heat Sink Heat Sink Disposable Heat Sink High-capacity Battery (250) High-capacity Matter Pod (200) Subdweller Optics Scrap Shield Self-contained Transmogrifier Spread Laser Subdweller Laser Autogun Autogun Improved Light Cannon Improved Light Cannon Grenade Launcher Mining Laser Flamer Makeshift Sword Shrapnel Trap Shrapnel Trap Peak State ------------ > --- POWER ------------ Meta Core > --- PROPULSION ------- Light Treads Spiked Treads Spiked Treads > --- UTILITY ---------- Disposable Heat Sink Huge Storage Unit Makeshift Light Armor Plating > --- WEAPON ----------- Spread Laser Subdweller Beam Cannon Autogun > --- INVENTORY -------- Ion Engine Subdweller Monowheel Subdweller Monowheel Heat Sink Heat Sink Disposable Heat Sink High-capacity Battery High-capacity Matter Pod Subdweller Optics Scrap Shield Self-contained Transmogrifier Subdweller Laser Autogun Autogun Improved Light Cannon Improved Light Cannon Improved Light Cannon Improved Light Cannon Grenade Launcher Mining Laser Flamer Makeshift Sword Shrapnel Trap Shrapnel Trap [Rating: 36] Favorites ----------- Power Meta Core Engine Ion Engine Power Core Meta Core Propulsion Light Treads Treads Light Treads Wheel Subdweller Monowheel Utility Huge Storage Unit Device Disposable Heat Sink Storage Huge Storage Unit Processor Targeting Computer Protection Makeshift Light Armor Plating Weapon Spread Laser Energy Gun Spread Laser Energy Cannon Subdweller Beam Cannon Ballistic Gun Autogun Ballistic Cannon Improved Light Cannon Launcher Grenade Launcher Special Weapon Mining Laser Slashing Weapon Makeshift Sword Build | -11 -10 -10 -10 -7 ------- Run | Yrd Mat Min Sub Rec Slots Evolved . | . . . . . Power . | . . . . . Propulsion . | . . . . . Utility . | . . . . . Weapon . | . . . . . Parts Attached 35 | 6 8 . 17 4 Power 3 | 1 1 . 1 . Engine 2 | 1 1 . . . Core 1 | . . . 1 . Reactor . | . . . . . Propulsion 8 | 2 . . 6 . Treads 7 | 2 . . 5 . Leg . | . . . . . Wheel 1 | . . . 1 . Hover . | . . . . . Flight . | . . . . . Utility 9 | 1 3 . 2 3 Device 4 | . . . 1 3 Storage 3 | 1 2 . . . Processor 1 | . 1 . . . Hackware . | . . . . . Protection 1 | . . . 1 . Artifact . | . . . . . Weapon 15 | 2 4 . 8 1 Energy Gun 5 | 1 2 . 2 . Energy Cannon 2 | . . . 2 . Ballistic Gun 3 | 1 2 . . . Ballistic Cannon 2 | . . . 1 1 Launcher 1 | . . . 1 . Special Weapon 1 | . . . 1 . Impact Weapon . | . . . . . Slashing Weapon 1 | . . . 1 . Piercing Weapon . | . . . . . Special Melee Weapon . | . . . . . Unidentified Prototypes . | . . . . . Parts Lost 8 | . . . 7 1 Power 1 | . . . 1 . Propulsion 3 | . . . 3 . Utility . | . . . . . Weapon 4 | . . . 3 1 Highest Loss Streak 2 | . . . 2 1 To Critical Strikes . | . . . . . Average Backups 19 | . 9 18 21 21 Power 1 | . 1 1 . 1 Propulsion 2 | . 2 3 2 2 Utility 5 | . 1 3 6 6 Weapon 10 | . 5 11 11 10 Tool/Special . | . . . . . Unused Backups 21 | . 7 . . 14 Power 2 | . 1 . . 1 Propulsion 2 | . . . . 2 Utility 5 | . . . . 5 Weapon 11 | . 6 . . 5 Tool/Special 1 | . . . . 1 Average Slot Usage (%) 99 | . 95 100 99 100 Engine 3 | . 14 14 2 . Core 7 | . . . 7 11 Treads 27 | . 28 28 28 23 Device 7 | . . . 7 11 Storage 11 | . 14 14 10 11 Processor 4 | . 10 14 4 . Protection 6 | . . . 6 11 Energy Gun 13 | . 26 28 14 . Energy Cannon 5 | . . . 5 7 Ballistic Gun 6 | . 1 . 7 5 Ballistic Cannon 2 | . . . . 16 Peak Build Rating 36 | 6 11 11 36 35 Average Rating 27 | 4 9 11 29 33 On Entrance 12 | . 6 11 11 35 Avg Prop Armor Cover (%) 16 | . . . 16 . Naked Turns . | . . . . . Heaviest Build 106 | 13 91 91 106 106 Greatest Support 60 | 40 40 40 60 40 Greatest Overweight (x) 5 | . 2 2 5 2 Average Overweight (x) 1 | . . 2 1 2 Largest Inventory Capacity 25 | 8 25 25 25 25 Average Capacity 23 | 6 15 25 25 25 Most Carried 25 | 2 18 18 25 25 Average Carried 22 | . 9 18 23 24 Final Capacity 25 | 8 25 25 25 25 Final Carried 25 | 2 18 18 25 25 Class Distribution -------------------- 38% | Mutant 34% | Derelict-Tank 12% | Tank 8% | Gunner 3% | Commander-Tank Dominant Class ---------------- Mutant | -10/Materials Mutant | -10/Mines Derelict-Tank | -10/Subcaves Mutant | -7/Recycling Resources | -11 -10 -10 -10 -7 ----------- Run | Yrd Mat Min Sub Rec Matter Collected 1458 | 197 225 . 792 244 Remotely . | . . . . . Salvage Created 1992 | . 291 . 731 970 Parts 112 | . 26 . 45 41 Haulers Intercepted 2 | . 2 . . . Recyclers Shooed 3 | . 1 . . 2 Parts Field Recycled . | . . . . . Retrieved Matter . | . . . . . Parts Self-Destructed 22 | . . . 22 . Prevented . | . . . . . Parts Restored . | . . . . . Kills | -11 -10 -10 -10 -7 ------- Run | Yrd Mat Min Sub Rec Combat Hostiles Destroyed 36 | . 10 . 21 5 Guns 26 | . 10 . 16 . Cannons 7 | . . . 4 3 Classes Destroyed 12 | . 4 . 3 5 Builder 1 | . . . . 1 Hauler 2 | . 2 . . . Recycler 10 | . . . . 10 Turret 2 | . . . 2 . Watcher 3 | . 3 . . . Swarmer 8 | . 8 . . . Grunt 2 | . 2 . . . Sentry 3 | . . . . 3 Demolisher 1 | . . . . 1 Artisan 1 | . . . 1 . Subdweller 21 | . . . 21 . Scrapper 2 | . . . . 2 Best Kill Streak 6 | . 3 . 2 6 Combat Bots Only 3 | . 3 . 2 1 Max Kills in Single Turn 1 | . 1 . 1 1 Gunslinging . | . . . . . Exploded . | . . . . . Melee . | . . . . . Uniques/NPCs Destroyed . | . . . . . Combat | -11 -10 -10 -10 -7 -------- Run | Yrd Mat Min Sub Rec Hostile Shots Fired 206 | . 25 . 87 94 Missed 53 | . 5 . 23 25 Hits 153 | . 20 . 64 69 Projectile 153 | . 20 . 64 69 AOE 1 | . . . . 1 Critical Strikes 2 | . . . 1 1 Damage Taken 2086 | . 164 . 1237 685 Core 257 | . 41 . 100 116 Absorbed by Shields . | . . . . . Core Remaining (%) 100 | 100 . . . . Volleys Fired 165 | . 22 . 104 39 Largest 3 | . 2 . 3 3 Hottest 168 | . 130 . 168 136 Shots Fired 352 | . 44 . 214 94 Gun 196 | . 44 . 135 17 Cannon 130 | . . . 53 77 Launcher 21 | . . . 21 . Special 5 | . . . 5 . Kinetic 116 | . . . 47 69 Thermal 215 | . 44 . 146 25 Explosive 21 | . . . 21 . Electromagnetic . | . . . . . Robot Hit Streak 34 | . 7 . 34 14 Robot Miss Streak 15 | . 15 . 4 2 Penetration Max . | . . . . . Secondary Targets 1 | . 1 . . . Max Gunslinging Chain 1 | . 1 . . . Shots Hit Robots 222 | . 34 . 126 62 Core Hits 191 | . 48 . 118 25 Critical Kills 4 | . . . 1 3 Critical Parts Destroyed . | . . . . . Critical Strikes 5 | . . . 1 4 Meltdown 4 | . . . 1 3 Blast 1 | . . . . 1 Melee Attacks 16 | . . . 16 . Impact . | . . . . . Slashing 16 | . . . 16 . Piercing . | . . . . . Sneak Attacks . | . . . . . Combat Hostiles . | . . . . . Follow-up Attacks . | . . . . . Damage Inflicted 4141 | . 367 . 2389 1385 Guns 2117 | . 331 . 1624 162 Cannons 1803 | . . . 581 1222 Explosions 160 | . . . 160 . Melee . | . . . . . Ramming 37 | . 36 . . 1 Kinetic 1289 | . . . 422 867 Thermal 2655 | . 331 . 1807 517 Explosive 160 | . . . 160 . Electromagnetic . | . . . . . Impact . | . . . . . Slashing . | . . . . . Piercing . | . . . . . Highest Corruption . | . . . . . Average Corruption . | . . . . . Corruption Purged . | . . . . . Corruption Blocked . | . . . . . Overload Shots . | . . . . . Overflow Damage 9 | . . . . 9 Projectiles 9 | . . . . 9 Explosions . | . . . . . Melee . | . . . . . Knockbacks 10 | . . . 1 9 Impact . | . . . . . Kinetic 10 | . . . 1 9 Secondary . | . . . . . Self-Inflicted Damage . | . . . . . Shots . | . . . . . Rammed 8 | . 7 . . 1 Targets Rammed 8 | . 7 . . 1 Kicked . | . . . . . Crushed . | . . . . . Highest Temperature 311 | . 207 . 291 311 Average Temperature 72 | . 67 . 51 113 Received Heat Transfer 795 | . 12 . 506 277 Siege Activations . | . . . . . Martial Activations . | . . . . . Shielding Activations . | . . . . . Robots Disrupted . | . . . . . Combat Hostiles . | . . . . . Robots Corrupted . | . . . . . Combat Hostiles . | . . . . . Parts Fried . | . . . . . Impact Corruptions . | . . . . . Robots Melted 4 | . . . 1 3 Combat Hostiles 3 | . . . 1 2 Parts Melted 7 | . . . 4 3 Heat Transferred 3367 | . 415 . 2343 609 Parts Sabotaged . | . . . . . Parts Stolen . | . . . . . Parts Stripped . | . . . . . Power Chain Reactions . | . . . . . Alert | -11 -10 -10 -10 -7 ------- Run | Yrd Mat Min Sub Rec Maximum Alert Level . | . . . . . Low Security (%) 100 | 100 100 100 . 100 Level 1 . | . . . . . Level 2 . | . . . . . Level 3 . | . . . . . Level 4 . | . . . . . Level 5 . | . . . . . High Security . | . . . . . Max Security . | . . . . . Peak Influence 93 | . 93 . . 51 Initial 21 | . . . . 21 Average 12 | . 20 . . 7 Influence Increases 614 | . 324 . 55 235 Destroy 0b10 Robot/C 340 | . 200 . 40 100 Destroy 0b10 Robot/NC 85 | . 25 . . 60 Destroy Leader 50 | . 50 . . . Allied During Kill 13 | . . . . 13 Successful Hack 58 | . 34 . . 24 Disable Machine 15 | . . . . 15 Destroy Structure 8 | . . . . 8 Lose Combat Pursuer 45 | . 15 . 15 15 Influence Decreases 614 | . 324 . 10 280 Entered New Map 24 | . . . . 24 Time Decay 567 | . 324 . . 243 Lost Part 11 | . . . 10 1 Lost Ally 12 | . . . . 12 Squads Dispatched 3 | . 3 . . . Investigation 1 | . 1 . . . Extermination . | . . . . . Reinforcement 2 | . 2 . . . Assault . | . . . . . Garrison . | . . . . . Intercept . | . . . . . Searches Triggered . | . . . . . Construction Impeded . | . . . . . Haulers Reinforced . | . . . . . Active Scanning Responses . | . . . . . Cargo Convoy Interrupts . | . . . . . Stealth | -11 -10 -10 -10 -7 --------- Run | Yrd Mat Min Sub Rec Distress Signals . | . . . . . Communications Jammed . | . . . . . Distress Signals . | . . . . . Times Spotted 65 | . 28 . 27 10 Peak Tracking Total 4 | . 4 . 2 3 Tactical Retreats 5 | . 1 . 3 1 Traps | -11 -10 -10 -10 -7 ------- Run | Yrd Mat Min Sub Rec Traps Triggered 2 | . 1 . 1 . Indirectly . | . . . . . Trap Hack Attempts . | . . . . . Triggered . | . . . . . Disarmed . | . . . . . Reprogrammed . | . . . . . Reused . | . . . . . Traps Extracted . | . . . . . Installed . | . . . . . Triggered . | . . . . . Most Traps Carried 2 | . . . 2 2 Machines | -11 -10 -10 -10 -7 ---------- Run | Yrd Mat Min Sub Rec Machines Disabled 6 | . . . 3 3 Max in Single Turn 1 | . . . 1 1 Machines Repaired . | . . . . . Machines Dismantled . | . . . . . Machines Sabotaged . | . . . . . Overloaded Fab Kills . | . . . . . Hacking | -11 -10 -10 -10 -7 --------- Run | Yrd Mat Min Sub Rec Machines Accessed 16 | . 8 . 2 6 Terminals 13 | . 8 . . 5 Fabricators . | . . . . . Repair Stations . | . . . . . Recycling Units . | . . . . . Scanalyzers . | . . . . . Garrison Access . | . . . . . Total Hacks 49 | . 28 . 6 15 Successful 28 | . 16 . 6 6 Failed 21 | . 12 . . 9 Catastrophic . | . . . . . Database Lockouts . | . . . . . Manual 28 | . 18 . . 10 Terminals 41 | . 28 . . 13 Fabricators . | . . . . . Repair Stations . | . . . . . Recycling Units . | . . . . . Scanalyzers . | . . . . . Garrison Access . | . . . . . Terminal Hacks 20 | . 11 . 6 3 Record 5 | . . . 5 . Robot Analysis 4 | . 4 . . . Prototype ID Bank 5 | . 4 . . 1 Locate Traps 2 | . 2 . . . Zone Layout 1 | . 1 . . . Proto ID Catalog 1 | . . . 1 . Release Object 2 | . . . . 2 Fabricator Hacks . | . . . . . Repair Station Hacks . | . . . . . Recycling Unit Hacks . | . . . . . Scanalyzer . | . . . . . Garrison Access Hacks . | . . . . . Unauthorized Hacks 8 | . 5 . . 3 Terminals 8 | . 5 . . 3 Assimilate 1 | . 1 . . . Botnet 6 | . 3 . . 3 Operators 1 | . 1 . . . Fabricators . | . . . . . Repair Stations . | . . . . . Recycling Units . | . . . . . Scanalyzers . | . . . . . Garrison Access . | . . . . . Data Cores Recovered . | . . . . . Used . | . . . . . Hacking Detections 13 | . 8 . . 5 Full Trace Events . | . . . . . Feedback Events . | . . . . . Feedback Blocked . | . . . . . Robot Schematics Acquired . | . . . . . Robots Built . | . . . . . Authchips . | . . . . . Time . | . . . . . Total Robot Build Rating . | . . . . . Part Schematics Acquired . | . . . . . Parts Built . | . . . . . Authchips . | . . . . . Time . | . . . . . Total Part Build Rating . | . . . . . Part Studies Acquired . | . . . . . Parts Repaired . | . . . . . Time . | . . . . . Parts Recycled . | . . . . . Recycled Matter . | . . . . . Retrieved Matter . | . . . . . Retrieved Components . | . . . . . Parts Scanalyzed . | . . . . . Part Schematics Acquired . | . . . . . Parts Damaged . | . . . . . Bothacking | -11 -10 -10 -10 -7 ------------ Run | Yrd Mat Min Sub Rec Used RIF Installer . | . . . . . Robots Hacked . | . . . . . Non-combat . | . . . . . Combat . | . . . . . Robot Hacks Applied . | . . . . . Relay Couplers Released . | . . . . . Fabnet Peak Effective % . | . . . . . Robots Rewired 4 | . . . . 4 Allies Hacked . | . . . . . Hacks Repelled . | . . . . . Allies | -11 -10 -10 -10 -7 -------- Run | Yrd Mat Min Sub Rec Total Allies 4 | . . . . 4 Largest Group 4 | . . . . 4 Highest-Rated Group 85 | . . . . 85 Highest-Rated Ally 32 | . . . . 32 Total Orders . | . . . . . Ally Attacks 17 | . . . . 17 Total Damage 295 | . . . . 295 Kills 4 | . . . . 4 Allies Corrupted . | . . . . . Allies Melted . | . . . . . Intel | -11 -10 -10 -10 -7 ------- Run | Yrd Mat Min Sub Rec Active Infowar (turns) . | . . . . . Robot Analysis Total 4 | . 4 . . . Derelict Logs Recovered 1 | . . . 1 . Drone Launches . | . . . . . Drone Recoveries . | . . . . . Exploration | -11 -10 -10 -10 -7 ------------- Run | Yrd Mat Min Sub Rec Turns Passed 12342 | 85 1491 60 8928 1778 Spaces Moved 3938 | 49 619 12 2823 435 Core 3 | 3 . . . . Treads 3718 | 46 619 12 2606 435 Legs . | . . . . . Wheels 217 | . . . 217 . Hover . | . . . . . Flight . | . . . . . Fastest Speed 50 | 50 160 320 160 360 Average Speed 260 | 153 206 320 258 360 Slowest Speed 360 | 160 320 320 360 360 Overloaded Moves . | . . . . . Propulsion Burnouts . | . . . . . Robots Hopped . | . . . . . Potential Cave-ins . | . . . . . Cave-ins Triggered . | . . . . . Exploration Rate (%) 55 | 4 91 7 96 80 Regions Visited 4 Branch Regions 3 Pre-discovered Areas 1 | . . . 1 . Known Exits Taken . | . . . . . Unknown Exits Taken 4 | 1 1 1 1 . Scrap Searched 16 | . . . 16 . Spaces Dug 11 | . . . 11 . Terrain Destroyed 175 | . . . 168 7 Melee 1 | . . . 1 . Projectile 20 | . . . 13 7 AOE 154 | . . . 154 . Terrain Rammed . | . . . . . Walls Destroyed . | . . . . . Machines Disabled . | . . . . . Actions | -11 -10 -10 -10 -7 --------- Run | Yrd Mat Min Sub Rec Total 5683 | 56 789 35 4237 566 Wait 1412 | . 96 24 1243 49 Move 3934 | 48 618 11 2822 435 Hop . | . . . . . Pick Up 41 | 2 22 . 14 3 Fast Attach 14 | 6 5 . 3 . Attach 9 | . . . 8 1 Detach 6 | . 4 . 2 . Swap 28 | . 3 . 22 3 Drop 17 | . 12 . 3 2 Fire 165 | . 22 . 104 39 Melee 16 | . . . 16 . Ram . | . . . . . Kick . | . . . . . Crush 8 | . 7 . . 1 Escape Stasis . | . . . . . Rewire 33 | . . . . 33 Trap . | . . . . . Miscellaneous . | . . . . . Route ------- -11/Scrapyard -10/Materials (discovered 4 exits: [*Mat x3] / [*Min]) -10/Mines -10/Subcaves (discovered 3 exits: [*Mat x2] / *Rec) -7/Recycling (discovered 1 exit: [*Fac]) History --------- Turn | Location | Event 2 | -11/Scrapyard | Discovered new exit (range 16) 86 | -11/Scrapyard | Entered Materials 196 | -10/Materials | Discovered new exit (range 16) 301 | -10/Materials | Discovered new exit (range 8) 304 | -10/Materials | Build established: Mutant 559 | -10/Materials | Discovered new exit (range 14) 863 | -10/Materials | Discovered new exit (range 15) 1577 | -10/Materials | Entered Mines 1627 | -10/Mines | Discovered new exit (range 4) 1637 | -10/Mines | Entered Subcaves 2653 | -10/Subcaves | Discovered new exit (range 13) 2872 | -10/Subcaves | Disturbed a concealed Subdweller 3418 | -10/Subcaves | Visited 4L-MR0's lab 3449 | -10/Subcaves | Found Prototype Device 3463 | -10/Subcaves | Found Meta Core 3475 | -10/Subcaves | Attached Meta Core, gained temporary slots: Propulsion, Utility, Weapon 3786 | -10/Subcaves | Build established: Gunner 3888 | -10/Subcaves | Visited Clippyterm 3895 | -10/Subcaves | Learned location of Extension (-6) 3895 | -10/Subcaves | Learned Factory stockpile data 4399 | -10/Subcaves | A swath of the cavern ceiling suddenly collapsed 4678 | -10/Subcaves | Shifting Twisted Machinery released Sub. Power Source 4683 | -10/Subcaves | Shifting Twisted Machinery released Sub. Laser 4974 | -10/Subcaves | Build established: Tank 5465 | -10/Subcaves | Shifting Twisted Machinery released Barrage Gun 5850 | -10/Subcaves | Build established: Scavenger-Tank 5898 | -10/Subcaves | Discovered new exit (range 15) 5900 | -10/Subcaves | Shifting Twisted Machinery released Sub. Monowheel 6070 | -10/Subcaves | Shifting Twisted Machinery released Mak. Hammer 6210 | -10/Subcaves | Discovered new exit (range 8) 6273 | -10/Subcaves | Build established: Derelict-Tank 6587 | -10/Subcaves | Disturbed a concealed Subdweller 10100 | -10/Subcaves | Ambushed by Subdweller buried in earth 10158 | -10/Subcaves | Ambushed by Subdweller buried in earth 10196 | -10/Subcaves | Ambushed by Subdweller buried in earth 10197 | -10/Subcaves | Core integrity fell below 50% 10199 | -10/Subcaves | Ambushed by Subdweller buried in earth 10473 | -10/Subcaves | Build established: Tank 10565 | -10/Subcaves | Entered Recycling 11294 | -7/Recycling | Build established: Commander-Tank 11437 | -7/Recycling | Core integrity fell below 20% 11749 | -7/Recycling | Build established: Mutant 11787 | -7/Recycling | Discovered new exit (range 4) 12158 | -7/Recycling | Scanned before Scraplab entrance 12212 | -7/Recycling | Entered Scraplab 12241 | -7/Recycling | Discovered new exit (range 3) 12312 | -7/Recycling | Angered Scraplab inhabitants 12343 | -7/Recycling | Destroyed by KK-D09(j) with Overtuned Pulse Rifle Last Messages --------------- 12312_ B9-JGJ(c) destroyed. 12313_ Commando 4a destroyed. 12314_ Machine disabled. 12314_ 7W-7GZ(c) knocked back. 12318_ UN-FET(j): "Defend the Scraplab!" 12319_ Connecting with Scraplab SEP... >>Release Inventory Accessing inventory controls... Prototype released... URGENT: Link to external system right away! Prototype Device integrity failing. 12320_ Scraplab SEP disabled. 12323_ UN-FET(j) knocked back. 12323_ Machine disabled. 12326_ UN-FET(j) knocked back. 12328_ Trooper 4b destroyed. 12329_ UN-FET(j) knocked back. 12329_ UN-FET(j) destroyed. Prototype Device integrity failing. 12340_ Critical hit (Burn: +50). Map ----- +----------------------------------------------------+ | ##### #????????????????? | | ##### #????????????????? | | # #????????????????? | | # ###??????????????? | | # !!#??????????????? | | # < !!#??????????????? | | ####### !!#??????????????? | | ??????# ###??????????????? | | #######+## #????????????????? | | # #????????????????? | | ""T"" # #????????????????? | | """"" # #????????????????? | | # #????????????????? | | ########## #?######?????????? | | ?????????# #?# #?????????? | | ?????????# #?# #??###????? | | ?????????# ### #### ##???? | | ?????????# + #???? | | ?????????# ### ##### #???? | | ?????????# #?# #???# #???? | | ########## #?# #???# #???? | | T""" ## #?######???#%#???? | | ## #??????#####j####? | | ## #??????#""!%!= "#? | | ## #??????#"&%!*[ "#? | | ## #??????#" =%=@"#? | | """ """ #? ???????#" [!! "#? | | """ """ #? ???????#"&% * #? | | """ """ ?? ???????#" %% #? | | ??? ???????#"X =% #? | | ???#???????#" ###? | | ??????????# "" %=#<#? | | ???????????# """%% #? | | ######??########??##########? | | #########"# !#????????????? | | + #????????????? | | ##### # #????????????? | | ## # !#????????????? | | !## # #????????????? | | ## % ###! #????????????? | | ## %"## ! #????????????? | | ! ##%%%%## ! #????????????? | | ! #" % ### !#????????????? | | ##/#" "## !#????????????? | | + #????????????? | | %% ### ! #????????????? | | " """ #?? !!#????????????? | | """""" #??#####????????????? | | """ " #???????????????????? | | #???????????????????? | +----------------------------------------------------+ Best States ------------- Heat Dissipation 39 Coolant Potential 50 Energy Generation 17 Energy Capacity 250 Matter Stores 300 Matter Capacity 300 Sight Range 16 Terrain Scan Density 10 Armor Coverage 100 Evasion (%) 40 Targeting Accuracy 5 Recoil Reduction 3 Item Schematics ----------------- None Robot Schematics ------------------ None Fabricated ------------ Nothing Repaired ---------- Nothing Studied --------- None Alien Tech Used ----------------- None Achievements -------------- Barbarian Challenges ------------ None Game ------ Seed StasisRelayProtomatter Manual? 0 Play Time 00:46:48 Cumulative 229.0 hours Start 2026.08.09 @ 09:27:44 End 2026.08.09 @ 17:42:27 Sessions 2 Manual Loads 0 Difficulty Rogue Special Mode None Game No. 134 Rogue 134 Adventurer 0 Explorer 0 Win Type - Total 5 Types 5/0/0/0/0/0/0/0/0/0 Lore% 77 Gallery% 67 Achievement% 59 Wizard Run 0 Options --------- Layout 1 ASCII 0 Keyboard 0 Movement Numpad Keybinds 0 Fullscreen 1 Font 24/Smallcaps Map View 50x35 Zoom Use 0% Tactical HUD 1 Map Filters NONE Filters NONE Steam 1 RUN: 3da5d135-a165-4ee3-9951-5d8aa8838eb6